bitfinex-derivatives/quotes_ETHF0:USTF0_20250528
["timestamp","ask_amount","ask_price","bid_price","bid_amount"]
[1748474360742,0.74798,2673.1,2673.0,0.75360398]
[1748474360944,0.74798,2673.1,2673.0,0.00561398]
[1748474362152,0.74797,2673.2,2673.0,0.75359398]
[1748474362451,0.74798,2673.1,2673.0,0.00561398]
[1748474363547,0.74798,2673.1,2673.0,0.75361398]
[1748474363743,5.35397,2673.2,2673.1,0.74798]
[1748474363943,0.74798,2673.1,2673.0,0.75360398]
[1748474364548,0.74798,2673.1,2673.0,0.00561398]
[1748474365443,0.74817,2672.4,2672.3,3.2078]
[1748474365646,1.87012,2672.9,2672.4,0.74817]
[1748474365647,0.74817,2672.5,2672.4,0.74817]
[1748474365853,0.74817,2672.4,2672.3,3.2078]
[1748474366239,0.74816,2672.5,2672.4,0.74817]
[1748474366438,4.606,2672.6,2672.3,3.2078]
[1748474366642,4.606,2672.6,2672.5,0.74814]
[1748474367652,4.606,2672.6,2672.4,1.2966]
[1748474367856,5.35413,2672.6,2672.5,0.74814]
[1748474368149,0.74817,2672.5,2672.4,0.74816]
[1748474368344,0.74817,2672.4,2672.3,3.2078]
[1748474368545,0.74817,2672.4,2672.3,3.956]
[1748474368746,0.74817,2672.4,2672.3,3.2078]
[1748474368951,0.74816,2672.5,2672.4,0.74815]
[1748474369151,0.74823,2672.2,2672.1,0.00561398]
[1748474369745,7.1002,2672.6,2672.1,0.00561398]
[1748474369945,5.35507,2672.8,2672.7,0.74808]
[1748474370154,4.607,2672.8,2672.6,3.2078]
[1748474370355,0.74809,2672.7,2672.6,3.9559]
[1748474371244,0.74809,2672.7,2672.6,3.2078]
[1748474371748,4.607,2672.8,2672.7,0.74809]
[1748474372553,5.35506,2672.8,2672.6,3.95591]
[1748474372751,4.607,2672.8,2672.4,2.04976]
[1748474372951,0.74812,2672.6,2672.4,0.74816]
[1748474373153,5.35508,2672.8,2672.6,0.74811]
[1748474373349,3.2078,2673.1,2672.6,0.74811]
[1748474373350,0.6173,2673.2,2672.6,3.2078]
[1748474373648,0.6319,2673.5,2673.2,0.74795]
[1748474373855,1.37977,2673.5,2673.2,0.74795]
[1748474374047,0.6319,2673.5,2673.2,0.74795]
[1748474374760,2.0882,2673.4,2673.1,0.74795]
[1748474374949,1.3403,2673.2,2673.1,0.74795]
[1748474375254,1.3403,2673.2,2673.0,0.74799]
[1748474375452,1.3403,2673.2,2673.1,0.74798]
[1748474376657,2.08825,2673.2,2673.1,0.74798]
[1748474376856,1.3403,2673.2,2673.1,0.74798]
[1748474377051,2.08825,2673.2,2673.1,0.74798]
[1748474377249,1.3403,2673.2,2673.0,0.74798]
[1748474377551,2.08827,2673.2,2673.1,0.74798]
[1748474377758,0.74798,2673.1,2673.0,0.74799]
[1748474377952,1.2419,2673.1,2673.0,0.74799]
[1748474378449,1.98988,2673.1,2672.9,0.74802]
[1748474378644,1.98989,2673.1,2672.9,0.74802]
[1748474378850,1.98989,2673.1,2672.8,3.2078]
[1748474379153,0.74803,2672.9,2672.8,3.2078]
[1748474379457,1.98989,2673.1,2672.9,0.74803]
[1748474379957,1.98989,2673.1,2673.0,0.748]
[1748474380148,1.2419,2673.1,2673.0,0.748]
[1748474380452,1.98988,2673.1,2672.9,0.74801]
[1748474380649,1.98988,2673.1,2672.8,3.2078]
[1748474380650,1.98988,2673.1,2672.8,3.95586]
[1748474380950,0.74812,2672.6,2672.5,3.2078]
[1748474381148,5.20908,2672.8,2672.5,3.95593]
[1748474381351,1.2529,2672.7,2672.5,3.95593]
[1748474381658,1.2529,2672.7,2672.3,1.3056]
[1748474381659,0.74815,2672.5,2672.2,4.56451]
[1748474381956,1.2529,2672.4,2672.2,3.8163]
[1748474382150,1.2529,2672.4,2672.3,0.7482]
[1748474382952,1.2529,2672.4,2672.2,3.8163]
[1748474383156,2.00108,2672.4,2672.2,4.56451]
[1748474383352,2.00108,2672.4,2672.2,4.5645]
[1748474383756,1.2529,2672.4,2672.3,0.7482]
[1748474383957,2.00109,2672.4,2672.2,3.95601]
[1748474384354,1.87058,2672.2,2671.4,3.2078]
[1748474384559,0.7484,2671.6,2671.4,3.95624]
[1748474384953,4.461,2671.7,2671.4,3.2078]
[1748474385151,1.3377,2671.6,2671.5,0.74842]
[1748474385356,2.53359,2672.1,2672.0,0.74828]
[1748474385357,5.1239,2672.1,2672.0,0.74828]
[1748474385557,6.4692,2672.1,2672.0,0.74828]
[1748474385862,1.3453,2672.1,2672.0,0.74828]
[1748474386063,4.461,2672.2,2672.0,3.2078]
[1748474386262,0.74826,2672.1,2672.0,3.2078]
[1748474386458,2.09356,2672.1,2672.0,3.2078]
[1748474392960,2.09356,2672.1,2672.0,3.95608]
[1748474394369,1.3453,2672.1,2672.0,3.95608]
[1748474394564,0.74826,2672.1,2672.0,3.2078]
[1748474394763,2.07936,2672.1,2672.0,3.2078]
[1748474398072,2.07936,2672.1,2672.0,3.95608]
[1748474398281,2.07936,2672.1,2672.0,3.2078]
[1748474399374,2.07936,2672.1,2672.0,3.95608]
[1748474399570,2.07936,2672.1,2672.0,3.2078]
[1748474399777,6.54136,2672.1,2672.0,3.2078]
[1748474399977,1.3311,2672.1,2672.0,3.95608]
[1748474400582,1.87072,2672.0,2671.7,3.2078]
[1748474400781,0.74834,2671.8,2671.7,3.2078]
[1748474403082,1.87065,2672.1,2671.7,3.2078]
[1748474403275,1.87065,2672.1,2671.8,1.2972]
[1748474403276,0.74831,2671.9,2671.8,1.2972]
[1748474403481,0.74834,2671.8,2671.7,3.2078]
[1748474403979,4.462,2671.9,2671.4,3.2078]
[1748474403980,0.74842,2671.5,2671.4,3.2078]
[1748474404578,0.74851,2671.2,2671.1,4.4613]
[1748474404781,0.74844,2671.5,2671.1,4.4613]
[1748474404985,0.74838,2671.7,2671.4,3.2078]
[1748474405189,0.74842,2671.5,2671.4,3.2078]
[1748474405384,1.87107,2671.5,2671.1,3.8403]
[1748474405585,1.87107,2671.5,2671.1,5.0938]
[1748474405586,0.74851,2671.2,2671.1,5.0938]
[1748474405995,1.2329,2671.4,2671.0,0.6625]
[1748474405996,0.74854,2671.1,2671.0,0.6625]
[1748474406289,0.74859,2670.9,2670.8,4.4613]
[1748474406486,0.74859,2670.9,2670.8,3.2078]
[1748474408895,0.74859,2670.9,2670.8,4.52]
[1748474409092,5.6959,2671.1,2670.8,4.52]
[1748474409297,5.6959,2671.1,2671.0,0.74856]
[1748474409493,6.44444,2671.1,2671.0,0.74856]
[1748474409690,5.6959,2671.1,2671.0,0.74856]
[1748474410090,5.6959,2671.1,2670.8,4.52]
[1748474410298,0.74859,2670.9,2670.8,3.2078]
[1748474410689,1.87162,2670.8,2669.8,3.2078]
[1748474410992,0.74883,2670.1,2670.0,0.6306]
[1748474411192,0.7488,2670.2,2670.0,0.6306]
[1748474411392,4.34,2670.3,2670.2,0.74878]
[1748474411697,4.34,2670.3,2670.1,0.7488]
[1748474411897,0.74879,2670.2,2670.1,1.9708]
[1748474412296,4.34,2670.3,2670.2,0.74879]
[1748474412500,5.08877,2670.3,2670.2,0.74879]
[1748474413099,4.34,2670.3,2670.2,0.74879]
[1748474413301,0.74879,2670.2,2670.1,1.9708]
[1748474413697,0.74879,2670.2,2670.1,1.222]
[1748474414398,4.34,2670.3,2669.8,3.2078]
[1748474414598,5.08876,2670.3,2670.2,0.74879]
[1748474414900,0.74879,2670.2,2670.1,0.7488]
[1748474415095,5.08877,2670.3,2670.2,0.74879]
[1748474415497,4.34,2670.3,2669.9,2.5628]
[1748474415897,0.74884,2670.0,2669.9,3.31165]
[1748474416092,0.74883,2670.1,2670.0,0.74883]
[1748474416295,0.74883,2670.1,2670.0,1.96523]
[1748474416490,0.74883,2670.1,2670.0,1.2164]
[1748474416697,0.74884,2670.0,2669.9,0.6135]
[1748474416898,2.08714,2670.0,2669.9,0.6135]
[1748474418005,2.08714,2670.0,2669.9,1.36237]
[1748474418303,2.08714,2670.0,2669.9,2.57877]
[1748474418605,0.74912,2669.0,2668.9,3.2078]
[1748474418803,5.09014,2669.0,2668.3,3.2078]
[1748474419004,0.00561398,2669.2,2669.1,0.7491]
[1748474420603,0.75470398,2669.2,2669.0,1.41961]
[1748474420797,2.02450398,2669.2,2669.0,1.4196]
[1748474421003,2.02450398,2669.2,2669.0,0.6705]
[1748474421304,1.27541398,2669.2,2669.1,0.7491]
[1748474421706,2.02448398,2669.2,2669.1,0.7491]
[1748474422007,1.27541398,2669.2,2669.1,0.7491]
[1748474422305,2.02450398,2669.2,2669.0,0.74912]
[1748474422501,1.27541398,2669.2,2668.9,3.2078]
[1748474422701,2.02449398,2669.2,2669.0,0.74912]
[1748474422903,2.02449398,2669.2,2668.9,3.2078]
[1748474423095,2.02449398,2669.2,2669.0,0.7491]
[1748474423300,1.27541398,2669.2,2669.1,0.7491]
[1748474423607,0.00561398,2669.2,2669.1,0.7491]
[1748474424703,0.7491,2669.1,2669.0,2.75361]
[1748474424900,1.22921398,2669.2,2669.1,0.7491]
[1748474425504,1.97828398,2669.2,2669.1,0.7491]
[1748474425905,1.22921398,2669.2,2669.1,0.7491]
[1748474427002,1.22921398,2669.2,2669.1,0.75417839]
[1748474427202,1.97828398,2669.2,2669.1,0.75417839]
[1748474427600,1.97828398,2669.2,2669.1,0.00507839]
[1748474427802,1.87287,2669.0,2668.0,3.2078]
[1748474428000,0.74941,2668.0,2667.9,1.2162]
[1748474428209,0.74938,2668.2,2668.0,0.74939]
[1748474428408,0.74938,2668.2,2668.1,0.74938]
[1748474428909,0.74938,2668.1,2668.0,0.74939]
[1748474429209,0.7494,2668.1,2668.0,0.74939]
[1748474429410,0.74947,2667.8,2667.7,0.74948]
[1748474429711,0.74945,2667.9,2667.8,0.74946]
[1748474430211,0.74943,2668.0,2667.8,0.74945]
[1748474430409,0.74943,2667.9,2667.8,0.74945]
[1748474430607,5.73658,2668.5,2667.6,5.0714]
[1748474430811,0.74939,2668.1,2667.6,6.94518]
[1748474431111,0.74939,2668.1,2667.7,1.2568]
[1748474431317,0.74944,2667.9,2667.8,0.74945]
[1748474431614,0.74942,2668.0,2667.9,0.74943]
[1748474432206,3.2078,2668.2,2668.0,0.74941]
[1748474432411,4.344,2668.2,2667.7,3.13048]
[1748474432615,4.344,2668.2,2668.1,0.74938]
[1748474434104,3.2078,2668.5,2668.4,0.74929]
[1748474434310,3.95708,2668.5,2668.4,0.74929]
[1748474434514,0.7493,2668.4,2668.3,0.74931]
[1748474434716,0.7493,2668.4,2668.0,1.2177]
[1748474434717,3.2078,2668.5,2668.0,1.2177]
[1748474434915,0.74937,2668.2,2668.1,0.74937]
[1748474435114,0.6471,2668.4,2668.2,0.74935]
[1748474435311,0.74934,2668.3,2668.2,0.74935]
[1748474435516,0.6471,2668.4,2668.3,0.74932]
[1748474436117,3.2078,2668.8,2668.7,0.74921]
[1748474436319,0.74921,2668.7,2668.6,0.74922]
[1748474436521,1.87304,2668.7,2668.0,1.2177]
[1748474436715,3.2078,2668.5,2667.9,3.2078]
[1748474436920,3.14313,2668.9,2668.2,3.2078]
[1748474436921,4.344,2668.7,2668.2,3.2078]
[1748474437117,1.2702,2668.9,2668.3,4.51251]
[1748474437322,5.09319,2668.8,2668.7,0.74921]
[1748474438508,5.09319,2668.8,2668.3,4.51251]
[1748474438509,0.00561398,2669.2,2668.8,0.74918]
[1748474438810,0.75468398,2669.2,2669.1,0.7491]
[1748474439008,0.75468398,2669.2,2668.8,1.3339]
[1748474439009,0.1123,2669.1,2668.8,1.3339]
[1748474439219,0.1123,2669.1,2669.0,0.74913]
[1748474440216,0.1123,2669.1,2668.6,1.3263]
[1748474440520,0.1123,2669.1,2669.0,0.74913]
[1748474442616,0.74889,2669.9,2669.2,1.87262]
[1748474442918,7.4638,2670.0,2669.0,5.0]
[1748474442919,7.4638,2670.0,2669.5,1.8724]
[1748474443122,7.4638,2670.0,2669.3,3.8642]
[1748474443315,0.6217,2669.9,2669.3,5.73677]
[1748474443515,0.74891,2669.8,2669.7,0.74891]
[1748474443821,0.74894,2669.7,2669.6,0.74894]
[1748474444023,0.74892,2669.8,2669.7,0.74891]
[1748474444214,0.6217,2669.9,2669.8,0.7489]
[1748474444412,7.46941398,2670.0,2669.9,0.74887]
[1748474444616,0.00561398,2670.0,2669.9,0.74887]
[1748474444826,0.00561398,2670.0,2669.9,3.95667]
[1748474445122,3.2078,2670.6,2669.9,28.21895]
[1748474445316,3.2078,2671.0,2670.2,3.2078]
[1748474445523,7.4628,2671.0,2670.9,0.74859]
[1748474446516,7.4628,2671.0,2670.5,3.2078]
[1748474446826,1.3668,2670.9,2670.5,3.2078]
[1748474447326,0.74866,2670.7,2670.5,3.95648]
[1748474447517,1.2548,2670.6,2670.4,0.74872]
[1748474447729,7.4618,2670.5,2670.0,0.6294]
[1748474447919,0.74883,2670.1,2669.8,3.2078]
[1748474448123,0.74887,2669.9,2669.8,3.95669]
[1748474448624,2.00367,2670.0,2669.8,3.95668]
[1748474448922,1.2548,2670.0,2669.9,0.74887]
[1748474449225,1.2548,2670.0,2669.8,3.2078]
[1748474449417,1.2548,2670.0,2669.9,0.74887]
[1748474449615,2.00365,2670.0,2669.8,3.95668]
[1748474450127,2.00366,2670.0,2669.8,3.95668]
[1748474450922,0.7489,2669.8,2669.7,0.74892]
[1748474451129,1.2548,2670.0,2669.8,0.7489]
[1748474451322,1.2548,2670.0,2669.9,0.74887]
[1748474451624,2.00365,2670.0,2669.9,0.74887]
[1748474451816,1.2548,2670.0,2669.9,0.74887]
[1748474452012,0.74882,2670.1,2669.9,0.74885]
[1748474452320,1.2324,2670.1,2669.6,1.2165]
[1748474452524,0.7489,2669.9,2669.7,0.74891]
[1748474452723,1.2324,2669.8,2669.7,0.74891]
[1748474455023,3.2078,2670.2,2670.1,0.74882]
[1748474455420,3.2078,2670.2,2669.8,4.444]
[1748474455620,2.01863,2670.1,2669.8,1.2362]
[1748474455822,2.01863,2670.1,2670.0,0.74885]
[1748474456021,1.2698,2670.1,2670.0,0.74885]
[1748474456231,2.01862,2670.1,2670.0,0.74885]
[1748474456435,1.2698,2670.1,2670.0,0.74885]
[1748474457129,4.254,2670.4,2670.3,0.74874]
[1748474457430,5.5238,2670.4,2670.3,0.74874]
[1748474457632,6.27253,2670.4,2670.3,0.74874]
[1748474458128,6.27254,2670.4,2670.3,0.74876]
[1748474460226,5.5238,2670.4,2670.3,0.74876]
[1748474462026,5.5238,2670.4,2670.0,1.9538]
[1748474462235,0.74893,2669.7,2669.6,3.2078]
[1748474462431,0.74893,2669.7,2669.6,0.74896]
[1748474462626,1.2943,2670.0,2669.9,0.74887]
[1748474463128,3.2078,2670.2,2670.1,0.74882]
[1748474464937,0.4885,2670.4,2670.3,0.74876]
[1748474465131,0.112,2670.6,2670.5,0.74871]
[1748474465435,3.2078,2671.4,2671.1,0.74854]
[1748474466332,0.6656,2671.6,2671.1,0.74854]
[1748474466727,0.6656,2671.6,2671.1,3.95634]
[1748474468241,1.3231,2671.5,2671.1,3.95634]
[1748474468426,0.74835,2671.8,2671.1,3.95634]
[1748474468633,1.3231,2671.6,2671.1,3.95634]
[1748474469840,3.98e-06,2671.2,2671.1,27.08334]
[1748474470230,3.2078,2672.2,2672.1,0.74826]
[1748474470737,44.53844,2674.2,2673.0,0.74801]
[1748474470738,7.4608,2673.1,2673.0,0.74801]
[1748474471127,9.253,2673.1,2672.9,0.74802]
[1748474471331,0.74803,2672.9,2672.8,0.00561398]
[1748474472040,5.4855,2673.0,2672.8,0.00561398]
[1748474472236,0.74803,2672.9,2672.8,0.00561398]
[1748474472439,2.03643,2672.9,2672.8,0.00561398]
[1748474473136,1.2884,2672.9,2672.8,0.75367398]
[1748474474337,2.03643,2672.9,2672.8,0.00561398]
[1748474474536,0.74825,2672.2,2671.7,3.2078]
[1748474474738,2.05817,2672.1,2671.7,3.2078]
[1748474475035,2.05817,2672.1,2672.0,0.74829]
[1748474475236,1.3099,2672.1,2672.0,0.74829]
[1748474476236,0.74831,2671.9,2671.8,0.00561398]
[1748474477343,0.74829,2672.0,2671.9,0.7483]
[1748474477533,1.2147,2672.0,2671.9,0.7483]
[1748474478041,0.74831,2671.9,2671.8,0.75394398]
[1748474478245,1.96299,2672.0,2671.9,0.74831]
[1748474478642,0.74831,2671.9,2671.8,0.00561398]
[1748474478841,1.96301,2671.9,2671.8,0.00561398]
[1748474479045,6.96301,2671.9,2671.8,0.00561398]
[1748474480144,0.74843,2671.5,2671.4,3.2078]
[1748474480340,0.7486,2670.9,2670.8,0.74861]
[1748474480543,3.2078,2671.2,2670.7,3.2078]
[1748474480747,4.25,2671.3,2670.7,3.95645]
[1748474480946,1.2873,2671.1,2671.0,0.74857]
[1748474481145,1.2873,2671.1,2670.8,0.00561398]
[1748474481341,0.74859,2670.9,2670.8,0.00561398]
[1748474481646,3.95639,2670.9,2670.8,0.00561398]
[1748474482041,3.95639,2670.9,2670.4,0.74872]
[1748474482042,0.74878,2670.3,2670.1,0.74882]
[1748474482240,1.2873,2670.2,2670.1,0.74882]
[1748474482452,1.2873,2670.2,2669.7,1.3]
[1748474482648,1.2873,2670.2,2670.1,0.74882]
[1748474483742,2.03609,2670.2,2670.1,0.74882]
[1748474483943,1.2873,2670.2,2670.1,0.74882]
[1748474484755,3.2078,2670.8,2669.9,1.343]
[1748474485053,1.2144,2670.9,2670.8,0.74862]
[1748474485241,1.2144,2670.9,2670.7,0.74864]
[1748474485242,1.96301,2670.9,2670.7,0.74864]
[1748474485552,1.2144,2670.9,2670.3,1.87191]
[1748474485849,1.96301,2670.9,2670.7,0.74864]
[1748474486047,3.2078,2670.8,2670.2,0.74878]
[1748474486253,3.2078,2670.8,2669.8,3.2078]
[1748474486254,0.74878,2670.3,2669.8,3.2078]
[1748474486441,3.2078,2670.5,2669.8,3.2078]
[1748474486442,1.97211,2670.2,2669.8,4.5364]
[1748474486747,4.4311,2670.2,2669.9,0.74885]
[1748474487044,4.4311,2670.2,2669.5,0.74897]
[1748474487248,3.2078,2669.8,2669.3,0.6331]
[1748474487442,3.2078,2669.4,2668.9,0.6477]
[1748474487641,0.74909,2669.2,2668.7,3.2078]
[1748474487850,1.2233,2669.1,2669.0,0.74913]
[1748474488244,0.6686,2669.6,2669.5,0.74899]
[1748474488555,0.74905,2669.3,2668.8,1.3286]
[1748474488851,1.3326,2669.2,2669.1,0.7491]
[1748474490641,0.00561398,2669.8,2669.7,0.74893]
[1748474491755,0.74894,2669.7,2669.6,0.74894]
[1748474492350,1.24841398,2669.8,2669.7,0.74893]
[1748474492849,3.98e-06,2669.8,2669.7,5.74893]
[1748474493158,3.2078,2670.5,2670.4,0.74873]
[1748474493345,3.95651,2670.5,2670.4,0.74873]
[1748474493546,3.2078,2670.5,2670.4,0.74873]
[1748474494255,0.00561398,2670.7,2670.6,0.74868]
[1748474495851,0.7487,2670.6,2670.5,0.7487]
[1748474496053,0.00561398,2670.7,2670.2,3.21341398]
[1748474496551,0.00561398,2670.7,2670.6,0.74868]
[1748474496752,37.732,2671.2,2670.6,0.74868]
[1748474496753,4.251,2671.3,2670.8,0.74862]
[1748474496957,0.6636,2671.4,2671.3,0.74848]
[1748474497457,4.251,2671.6,2671.3,0.74848]
[1748474497657,4.251,2671.6,2671.5,0.74843]
[1748474498249,0.00561398,2671.8,2671.7,0.74837]
[1748474498461,0.00561398,2671.8,2671.2,3.19873]
[1748474498462,0.74839,2671.7,2671.6,0.7484]
[1748474498655,3.21341398,2671.8,2671.5,0.7484]
[1748474499052,0.7484,2671.6,2671.4,0.74843]
[1748474499247,3.21341398,2671.8,2671.2,1.3275]
[1748474499548,3.2078,2671.5,2671.2,1.3275]
[1748474500254,8.20724,2671.5,2671.2,1.3275]
[1748474500559,7.4588,2671.5,2671.4,0.74845]
[1748474500860,3.21341398,2671.8,2671.2,1.87128]
[1748474501048,3.21341398,2671.8,2671.2,1.313]
[1748474501253,3.21341398,2671.8,2671.3,1.87121]
[1748474501457,3.21341398,2671.8,2671.7,0.74837]
[1748474501660,3.21341398,2671.8,2671.4,1.313]
[1748474501954,0.00561398,2671.8,2671.7,0.74837]
[1748474502147,0.00561398,2671.8,2671.5,0.6391]
[1748474502353,0.00561398,2671.8,2671.7,0.74837]
[1748474503863,3.98e-06,2671.8,2671.7,5.74837]
[1748474504162,3.98e-06,2671.8,2671.7,28.11837]
[1748474506055,3.98e-06,2671.8,2671.7,28.11537]
[1748474506663,3.98e-06,2671.8,2671.7,5.74837]
[1748474506860,3.98e-06,2671.8,2671.7,3.95617]
[1748474507068,3.98e-06,2671.8,2671.7,0.74837]
[1748474507265,1.24280398,2671.8,2671.7,0.74837]
[1748474507461,1.24280398,2671.8,2671.3,27.44498]
[1748474507462,4.45060398,2671.8,2671.3,3.2078]
[1748474507664,3.2078,2671.4,2671.0,1.87142]
[1748474507859,1.2428,2671.3,2671.2,0.74851]
[1748474508565,5.5487,2671.7,2671.6,0.7484]
[1748474508760,5.5487,2671.7,2671.0,4.5183]
[1748474508962,0.7484,2671.6,2671.0,4.5183]
[1748474509267,0.7484,2671.6,2671.4,0.74845]
[1748474509463,3.2078,2671.5,2671.0,4.5183]
[1748474509762,3.2078,2671.5,2671.3,0.74847]
[1748474509967,1.3313,2671.4,2671.3,0.74847]
[1748474511268,1.3313,2671.4,2671.2,0.74848]
[1748474511470,2.07976,2671.4,2671.2,0.74849]
[1748474511660,2.07977,2671.4,2671.1,0.74853]
[1748474511862,2.07977,2671.4,2670.7,1.87161]
[1748474511863,1.3313,2671.4,2670.7,21.3238]
[1748474512162,1.3313,2671.4,2670.7,3.2078]
[1748474512364,0.74861,2670.9,2670.6,0.74867]
[1748474512566,3.2078,2670.7,2670.5,0.74869]
[1748474512762,2.07999,2670.6,2670.1,22.6027]
[1748474512962,3.2078,2670.3,2669.8,3.2078]
[1748474513173,1.3313,2670.6,2670.2,0.75439398]
[1748474513361,4.99573,2670.5,2670.2,0.75439398]
[1748474513565,4.247,2670.5,2670.4,0.74873]
[1748474515369,3.2078,2670.7,2670.6,0.74868]
[1748474515674,3.2078,2671.0,2670.9,0.74859]
[1748474516475,0.6138,2671.4,2670.5,1.3119]
[1748474516476,3.8216,2671.4,2670.5,1.3119]
[1748474516668,3.8216,2671.4,2670.7,3.2078]
[1748474516869,3.8216,2671.4,2671.2,0.7485]
[1748474517068,3.8216,2671.4,2670.8,19.4299]
[1748474517377,4.57008,2671.4,2671.2,0.74851]
[1748474517575,0.74848,2671.3,2670.8,18.118]
[1748474517875,3.8216,2671.4,2670.1,3.2078]
[1748474517876,3.2078,2671.1,2670.1,3.2078]
[1748474518077,3.2078,2670.7,2669.8,3.2078]
[1748474518378,1.2277,2670.6,2669.8,5.08002]
[1748474518668,4.248,2670.5,2670.4,0.74873]
[1748474519575,4.248,2670.5,2670.3,0.74876]
[1748474519772,4.248,2670.5,2670.0,1.87209]
[1748474520172,4.248,2670.5,2670.4,0.74873]
[1748474520382,4.248,2670.5,2669.9,1.3119]
[1748474520571,4.248,2670.5,2670.4,0.74873]
[1748474521280,0.1123,2670.6,2670.5,0.74871]
[1748474522274,0.1123,2670.6,2670.5,1.98951]
[1748474522469,3.2078,2671.0,2670.9,0.74859]
[1748474522675,3.8559,2671.4,2670.8,1.87156]
[1748474522875,4.60437,2671.4,2671.2,0.7485]
[1748474523179,3.8559,2671.4,2670.8,1.87156]
[1748474523371,3.8559,2671.4,2671.3,0.74848]
[1748474523774,8.8559,2671.4,2670.8,0.6157]
[1748474524078,3.2078,2670.9,2670.3,3.8639]
[1748474524278,0.6672,2670.8,2670.7,0.74865]
[1748474524877,2.0135,2670.8,2670.7,0.74865]
[1748474525284,2.0135,2670.8,2670.3,3.8639]
[1748474525480,2.76213,2670.8,2670.3,3.2078]
[1748474525676,0.74875,2670.4,2670.2,0.00561398]
[1748474525985,1.254,2670.3,2670.2,0.00561398]
[1748474526180,1.254,2670.3,2670.2,0.75440398]
[1748474526979,7.00276,2670.3,2670.2,0.00561398]
[1748474527571,1.254,2670.3,2670.2,0.00561398]
[1748474527776,2.00276,2670.3,2670.2,0.00561398]
[1748474528079,1.254,2670.3,2670.2,0.75440398]
[1748474529382,4.249,2670.5,2670.4,0.74873]
[1748474529880,4.249,2670.5,2670.3,0.74874]
[1748474530082,1.3077,2670.4,2670.3,0.74874]
[1748474530480,4.249,2670.5,2670.4,0.74873]
[1748474530677,1.3077,2670.7,2670.6,0.74868]
[1748474531278,4.249,2670.9,2670.8,0.74862]
[1748474534186,5.5142,2670.9,2670.8,0.74862]
[1748474534686,6.2628,2670.9,2670.7,0.74864]
[1748474534891,5.5142,2670.9,2670.8,0.74862]
[1748474535186,5.5142,2670.9,2670.6,0.74865]
[1748474535390,0.7487,2670.6,2670.4,0.74873]
[1748474535689,1.2372,2670.5,2670.4,0.74873]
[1748474536191,4.247,2670.9,2670.8,0.74862]
[1748474537581,5.4701,2670.9,2670.8,0.74862]
[1748474538095,5.4701,2670.9,2670.7,0.74865]
[1748474538286,6.21871,2670.9,2670.7,0.74865]
[1748474538679,5.4701,2670.9,2670.8,0.74862]
[1748474539284,5.4701,2670.9,2670.7,1.3319]
[1748474539285,40.9448,2671.3,2670.9,1.87149]
[1748474539489,4.247,2671.2,2671.1,0.74854]
[1748474539685,5.4701,2671.2,2671.1,0.74854]
[1748474539890,5.4701,2671.2,2670.7,0.63]
[1748474540091,6.21861,2671.2,2670.7,2.50161]
[1748474540286,5.4701,2671.2,2670.8,1.3319]
[1748474540592,3.95638,2671.0,2670.8,0.74862]
[1748474540794,1.3033,2670.9,2670.8,0.74862]
[1748474541294,0.74865,2670.7,2670.5,3.2078]
[1748474541497,1.3033,2670.6,2670.5,3.2078]
[1748474541699,4.5111,2670.6,2670.2,5.11691398]
[1748474541896,8.7581,2670.6,2670.2,0.00561398]
[1748474542496,0.74875,2670.4,2670.2,0.00561398]
[1748474542694,1.3033,2670.3,2670.2,0.75440398]
[1748474543495,1.3033,2670.3,2670.2,0.00561398]
[1748474543697,1.3033,2670.3,2670.2,0.75440398]
[1748474550709,2.05207,2670.3,2670.2,0.00561398]
[1748474550894,1.3033,2670.3,2670.2,0.75441398]
[1748474553707,2.52316,2671.0,2670.2,0.75441398]
[1748474553708,0.6517,2671.0,2670.9,0.7486]
[1748474553904,1.2989,2671.1,2671.0,0.74857]
[1748474554906,1.2989,2671.1,2670.5,3.2078]
[1748474555206,3.2078,2670.9,2670.4,1.87186]
[1748474555403,5.5459,2670.8,2670.7,0.74866]
[1748474555905,0.74866,2670.7,2670.5,0.74869]
[1748474556101,4.5495,2670.6,2670.3,0.74877]
[1748474556305,0.74877,2670.3,2670.2,0.00561398]
[1748474556507,4.99577,2670.3,2670.2,0.00561398]
[1748474556712,4.247,2670.3,2670.2,0.75441398]
[1748474556913,7.4548,2670.3,2670.2,0.75441398]
[1748474557103,8.7965,2670.3,2670.2,0.75441398]
[1748474557309,9.54527,2670.3,2670.2,0.00561398]
[1748474557711,8.7965,2670.3,2670.2,0.00561398]
[1748474557911,8.7965,2670.3,2670.2,0.75441398]
[1748474558113,0.6569,2670.7,2670.3,1.87187]
[1748474558411,1.9986,2670.7,2670.6,0.74868]
[1748474558613,3.2078,2670.9,2670.8,0.74863]
[1748474559105,5.4632,2671.0,2670.9,0.7486]
[1748474560606,5.4632,2671.0,2670.6,1.2574]
[1748474560811,3.2078,2670.7,2670.3,1.2856]
[1748474561012,1.9649,2670.6,2670.5,0.7487]
[1748474561207,1.841,2670.6,2670.4,0.74873]
[1748474561413,0.74871,2670.5,2670.3,0.74875]
[1748474561614,1.2162,2670.4,2670.3,0.74875]
[1748474561809,0.74877,2670.3,2670.2,0.00561398]
[1748474562316,2.04117,2670.3,2670.2,0.00561398]
[1748474564006,7.04117,2670.3,2670.2,0.00561398]
[1748474564807,7.04117,2670.3,2669.6,3.2078]
[1748474564808,1.87205,2670.2,2669.4,2.6058]
[1748474565008,3.2078,2669.9,2669.6,0.74896]
[1748474565211,1.99123,2669.8,2669.6,0.74896]